Cogmind - Beta 9.1 @@@ ROGUE MODE // 2019.11.03 @ 11:19:44 Player: MrPainting Result: Destroyed by as-34009 with Assembled F-torch Performance ------------- Evolutions (1) 500 Regions Visited (3) 600 Robots Destroyed (66) 330 Value Destroyed (1804) 1804 Prototype IDs (4) 80 Alien Tech Used (0) 0 Bonus (8) 8 TOTAL SCORE: 3322 Bonus ------- High Alert Combat Kills 8 Cogmind --------- Core Integrity 0/400 Matter 209/300 Energy 100/100 System Corruption 0% Temperature Cool (20) Location -9/Mines Parts ------- Power (1) Propulsion (3) Aluminum Leg Aluminum Leg Utility (3) Large Storage Unit Signal Interpreter Weapon (2) Inventory (10) Improved Heat Sink Improved Sensor Array Hacking Suite Hacking Suite High-powered Tractor Beam Peak State ------------ Power Cooled Ion Engine Propulsion Light Treads Aluminum Leg Aluminum Leg Utility Improved Heat Sink Large Storage Unit Signal Interpreter Weapon Advanced Beam Cannon Advanced Beam Cannon Inventory Heavy Ion Engine Small Storage Unit Improved Sensor Array Light Armor Plating High-powered Tractor Beam Grenade Launcher Grenade Launcher Grenade Launcher Grenade Launcher Grenade Launcher [Rating: 18] Favorites ----------- Power Cooled Ion Engine Engine Cooled Ion Engine Power Core Light Nuclear Core Propulsion Light Treads Treads Light Treads Leg Aluminum Leg Hover Unit Improved Hover Unit Utility Large Storage Unit Device Improved Heat Sink Storage Large Storage Unit Processor Signal Interpreter Protection Hardened Light Armor Plating Weapon Advanced Beam Cannon Energy Gun EM Shotgun Energy Cannon Advanced Beam Cannon Ballistic Gun Assault Rifle Ballistic Cannon Light Cannon Launcher Mini Grenade Launcher Build | -11 -10 -9 -9 ------- Run | Scr Mat Mat Min Slots Evolved 2 | . . 2 . Power . | . . . . Propulsion 1 | . . 1 . Utility 1 | . . 1 . Weapon . | . . . . Parts Attached 73 | 4 7 47 15 Power 7 | . 1 6 . Engine 4 | . 1 3 . Core 3 | . . 3 . Reactor . | . . . . Propulsion 29 | 2 2 22 3 Treads 10 | . 2 8 . Leg 13 | 2 . 8 3 Wheel . | . . . . Hover 6 | . . 6 . Flight . | . . . . Utility 8 | . 3 4 1 Device 1 | . . 1 . Storage 3 | . 3 . . Processor 1 | . . 1 . Hackware . | . . . . Protection 3 | . . 2 1 Artifact . | . . . . Weapon 29 | 2 1 15 11 Energy Gun 14 | . 1 8 5 Energy Cannon 4 | . . 3 1 Ballistic Gun 4 | 2 . 2 . Ballistic Cannon 1 | . . 1 . Launcher 6 | . . 1 5 Special Weapon . | . . . . Impact Weapon . | . . . . Slashing Weapon . | . . . . Piercing Weapon . | . . . . Special Melee Weapon . | . . . . Unidentified Prototypes 4 | . . 4 . Parts Lost 25 | . 1 10 14 Power 2 | . . 1 1 Propulsion 10 | . . 6 4 Utility 1 | . . . 1 Weapon 12 | . 1 3 8 Highest Loss Streak 8 | . 1 3 8 Average Slot Usage (%) 87 | . 87 89 76 Engine 8 | . 12 8 5 Treads 14 | . 24 11 17 Leg 12 | . 2 15 5 Hover 2 | . . 2 . Device 4 | . . 5 5 Storage 13 | . 24 11 11 Processor 8 | . . 10 11 Protection 1 | . . 2 . Energy Gun 4 | . . 3 11 Energy Cannon 7 | . . 10 . Ballistic Gun 5 | . 21 2 . Ballistic Cannon 1 | . . 2 . Launcher 1 | . . 1 6 Naked Turns . | . . . . Heaviest Build 40 | 3 40 35 31 Greatest Support 60 | 20 40 60 60 Greatest Overweight (x) 7 | . . 2 7 Average Overweight (x) . | . . . . Largest Inventory Capacity 16 | 4 16 16 10 Average Capacity 10 | 4 14 10 10 Most Carried 11 | 4 11 10 10 Average Carried 8 | 2 5 9 8 Final Capacity 16 | 4 16 10 10 Final Carried 11 | 4 11 10 5 Class Distribution -------------------- 57% | Scavenger-Mutant 42% | Mutant Dominant Class ---------------- Mutant | -10/Materials Scavenger-Mutant | -9/Materials Mutant | -9/Mines Resources | -11 -10 -9 -9 ----------- Run | Scr Mat Mat Min Matter Collected 1325 | 195 218 803 109 Remotely . | . . . . Salvage Created 2292 | . 344 1686 262 Parts 150 | . 21 116 13 Haulers Intercepted 4 | . . 4 . Recyclers Shooed 1 | . 1 . . Parts Field Recycled . | . . . . Retrieved Matter . | . . . . Parts Self-Destructed . | . . . . Prevented . | . . . . Kills | -11 -10 -9 -9 ------- Run | Scr Mat Mat Min Combat Hostiles Destroyed 49 | . 7 31 11 Guns 24 | . 7 10 7 Cannons 17 | . . 17 . AOE 7 | . . 3 4 Classes Destroyed 11 | . 3 6 2 Worker 1 | . 1 . . Builder 3 | . 1 2 . Hauler 4 | . . 4 . Recycler 1 | . . 1 . Operator 3 | . . 3 . Watcher 5 | . . 5 . Swarmer 3 | . . 3 . Grunt 32 | . 7 21 4 Sentry 7 | . . 7 . Demolisher 1 | . . . 1 Assembled 6 | . . . 6 Best Kill Streak 6 | . 3 6 4 Combat Bots Only 6 | . 2 6 4 Max Kills in Single Turn 2 | . 1 2 1 Gunslinging . | . . . . Exploded 2 | . . 2 1 Melee . | . . . . Uniques/NPCs Destroyed . | . . . . Combat | -11 -10 -9 -9 -------- Run | Scr Mat Mat Min Damage Taken 3515 | . 584 1613 1318 Core 531 | . 127 190 214 Absorbed by Shields . | . . . . Core Remaining (%) 74 | 100 49 . . Volleys Fired 215 | . 51 128 36 Largest 2 | . 2 2 2 Hottest 136 | . 40 136 90 Shots Fired 344 | . 79 217 48 Gun 202 | . 79 88 35 Cannon 129 | . . 128 1 Launcher 13 | . . 1 12 Special . | . . . . Kinetic 166 | . 79 87 . Thermal 120 | . . 101 19 Explosive 13 | . . 1 12 Electromagnetic 45 | . . 28 17 Robot Hit Streak 21 | . 21 9 12 Robot Miss Streak 6 | . 2 6 3 Penetration Max . | . . . . Secondary Targets 1 | . . 1 . Max Gunslinging Chain 1 | . . 1 . Shots Hit Robots 221 | . 61 125 35 Core Hits 116 | . 24 61 31 Critical Hits 11 | . . 11 . Critical Kills 5 | . . 5 . Critical Parts Destroyed 5 | . . 5 . Melee Attacks . | . . . . Impact . | . . . . Slashing . | . . . . Piercing . | . . . . Sneak Attacks . | . . . . Combat Hostiles . | . . . . Follow-up Attacks . | . . . . Damage Inflicted 3967 | . 648 2568 751 Guns 1835 | . 648 803 384 Cannons 1632 | . . 1612 20 Explosions 500 | . . 153 347 Melee . | . . . . Ramming . | . . . . Kinetic 1505 | . 648 857 . Thermal 1663 | . . 1364 299 Explosive 282 | . . 29 253 Electromagnetic 517 | . . 318 199 Impact . | . . . . Slashing . | . . . . Piercing . | . . . . Highest Corruption . | . . . . Average Corruption . | . . . . Corruption Purged . | . . . . Overload Shots . | . . . . Overflow Damage 41 | . . 32 9 Projectiles 5 | . . 5 . Explosions 36 | . . 27 9 Melee . | . . . . Knockbacks 6 | . . 6 . Impact . | . . . . Kinetic 6 | . . 6 . Secondary . | . . . . Self-Inflicted Damage 392 | . . 105 287 Shots 10 | . . 3 7 Rammed . | . . . . Targets Rammed . | . . . . Kicked . | . . . . Crushed . | . . . . Highest Temperature 255 | . 18 255 80 Average Temperature 49 | . 8 54 36 Received Heat Transfer 1171 | . 321 660 190 Siege Activations . | . . . . Robots Corrupted 1 | . . 1 . Combat Hostiles . | . . . . Parts Fried 3 | . . 2 1 Impact Corruptions . | . . . . Robots Melted 1 | . . 1 . Combat Hostiles 1 | . . 1 . Parts Melted 4 | . . 4 . Heat Transferred 3025 | . . 2444 581 Parts Sabotaged . | . . . . Parts Stolen . | . . . . Parts Stripped . | . . . . Power Chain Reactions 3 | . . 2 1 Missiles Intercepted . | . . . . Alert | -11 -10 -9 -9 ------- Run | Scr Mat Mat Min Peak Influence 434 | . 180 434 303 Average Influence 224 | . 59 269 211 Maximum Alert Level 2 | . . 2 1 Low Security (%) 43 | . . . . Level 1 52 | . . . . Level 2 4 | . . . . Level 3 . | . . . . Level 4 . | . . . . Level 5 . | . . . . High Security . | . . . . Max Security . | . . . . Squads Dispatched 4 | . 1 3 . Investigation 1 | . . 1 . Extermination . | . . . . Reinforcement 3 | . 1 2 . Assault . | . . . . Garrison . | . . . . Intercept . | . . . . Construction Impeded . | . . . . Haulers Reinforced . | . . . . Stealth | -11 -10 -9 -9 --------- Run | Scr Mat Mat Min Distress Signals 5 | . 1 4 . Communications Jammed . | . . . . Distress Signals . | . . . . Times Spotted 73 | . 10 49 14 Peak Tracking Total 5 | . 4 5 4 Tactical Retreats 6 | . . 6 . Traps | -11 -10 -9 -9 ------- Run | Scr Mat Mat Min Traps Triggered 2 | . . 2 . Indirectly . | . . . . Trap Hack Attempts . | . . . . Triggered . | . . . . Disarmed . | . . . . Reprogrammed . | . . . . Reused . | . . . . Traps Extracted . | . . . . Installed . | . . . . Triggered . | . . . . Machines | -11 -10 -9 -9 ---------- Run | Scr Mat Mat Min Machines Disabled 3 | . . 2 1 Max in Single Turn 1 | . . 1 1 Machines Sabotaged . | . . . . Garrisons Compromised . | . . . . Overloaded Fab Kills . | . . . . Fab Network Shutdowns . | . . . . Hacking | -11 -10 -9 -9 --------- Run | Scr Mat Mat Min Machines Accessed 1 | . . 1 . Terminals 1 | . . 1 . Fabricators . | . . . . Repair Stations . | . . . . Recycling Units . | . . . . Scanalyzers . | . . . . Garrison Access . | . . . . Total Hacks 1 | . . 1 . Successful 1 | . . 1 . Failed . | . . . . Catastrophic . | . . . . Database Lockouts . | . . . . Manual 1 | . . 1 . Terminals 1 | . . 1 . Fabricators . | . . . . Repair Stations . | . . . . Recycling Units . | . . . . Scanalyzers . | . . . . Garrison Access . | . . . . Terminal Hacks 1 | . . 1 . Branch Access Points 1 | . . 1 . Fabricator Hacks . | . . . . Repair Station Hacks . | . . . . Recycling Unit Hacks . | . . . . Scanalyzer . | . . . . Garrison Access Hacks . | . . . . Unauthorized Hacks . | . . . . Terminals . | . . . . Fabricators . | . . . . Repair Stations . | . . . . Recycling Units . | . . . . Scanalyzers . | . . . . Garrison Access . | . . . . Data Cores Recovered 1 | . . 1 . Used . | . . . . Hacking Detections . | . . . . Full Trace Events . | . . . . Feedback Events . | . . . . Feedback Blocked . | . . . . Robot Schematics Acquired . | . . . . Robots Built . | . . . . Matter . | . . . . Time . | . . . . Total Robot Build Rating . | . . . . Part Schematics Acquired . | . . . . Parts Built . | . . . . Matter . | . . . . Time . | . . . . Total Part Build Rating . | . . . . Parts Repaired . | . . . . Time . | . . . . Parts Recycled . | . . . . Recycled Matter . | . . . . Retrieved Matter . | . . . . Retrieved Components . | . . . . Parts Scanalyzed . | . . . . Part Schematics Acquired . | . . . . Parts Damaged . | . . . . Bothacking | -11 -10 -9 -9 ------------ Run | Scr Mat Mat Min Used RIF Installer . | . . . . Robots Hacked . | . . . . Non-combat . | . . . . Combat . | . . . . Robot Hacks Applied . | . . . . Relay Couplers Released . | . . . . Robots Rewired . | . . . . Allies Hacked . | . . . . Hacks Repelled . | . . . . Allies | -11 -10 -9 -9 -------- Run | Scr Mat Mat Min Total Allies . | . . . . Largest Group . | . . . . Highest-Rated Group . | . . . . Highest-Rated Ally . | . . . . Total Orders . | . . . . Ally Attacks . | . . . . Total Damage . | . . . . Kills . | . . . . Allies Corrupted . | . . . . Allies Melted . | . . . . Intel | -11 -10 -9 -9 ------- Run | Scr Mat Mat Min Robot Analysis Total . | . . . . Derelict Logs Recovered 2 | . . . 2 Drone Launches . | . . . . Drone Recoveries . | . . . . Exploration | -11 -10 -9 -9 ------------- Run | Scr Mat Mat Min Turns Passed 2883 | 62 434 1999 388 Spaces Moved 1458 | 48 190 1063 157 Core 27 | 9 1 . 17 Treads 708 | . 151 459 98 Legs 632 | 39 38 513 42 Wheels . | . . . . Hover 91 | . . 91 . Flight . | . . . . Fastest Speed 50 | 50 50 52 120 Average Speed 145 | 106 151 141 175 Slowest Speed 400 | 120 160 180 400 Overloaded Moves . | . . . . Propulsion Burnouts . | . . . . Robots Hopped . | . . . . Cave-ins Triggered . | . . . . Exploration Rate (%) 39 | 3 39 77 39 Regions Visited 3 Branch Regions 1 Pre-discovered Areas . | . . . . Known Exits Taken 1 | . . 1 . Unknown Exits Taken 2 | 1 1 . . Scrap Searched 1 | . . . 1 Spaces Dug . | . . . . Terrain Destroyed 92 | . . 27 65 Melee . | . . . . Projectile . | . . . . AOE 92 | . . 27 65 Actions | -11 -10 -9 -9 --------- Run | Scr Mat Mat Min Total 1887 | 58 263 1348 218 Wait 56 | . 2 48 6 Move 1455 | 47 189 1062 157 Hop . | . . . . Pick Up 52 | 7 12 29 4 Fast Attach 12 | 1 1 10 . Attach 31 | 3 5 14 9 Detach 1 | . . 1 . Swap 30 | . 1 23 6 Drop 35 | . 2 33 . Fire 215 | . 51 128 36 Melee . | . . . . Ram . | . . . . Kick . | . . . . Crush . | . . . . Escape Stasis . | . . . . Rewire . | . . . . Trap . | . . . . Miscellaneous . | . . . . Route ------- -11/Scrapyard -10/Materials (discovered 2 exits: *Mat / [*Min]) -9/Materials (discovered 4 exits: *Mat x3 / *Min) -9/Mines (discovered 1 exit: *Mat) History --------- Turn | Location | Event 6 | -11/Scrapyard | Discovered new exit (range 15) 63 | -11/Scrapyard | Entered Materials 256 | -10/Materials | Discovered new exit (range 10) 304 | -10/Materials | Build established: Mutant 441 | -10/Materials | Core integrity fell below 50% 461 | -10/Materials | Discovered new exit (range 15) 497 | -10/Materials | Entered another Materials area 497 | -9/Materials | Evolved 2 slots: Propulsion x1, Utility x1 697 | -9/Materials | Discovered new exit (range 13) 718 | -9/Materials | Identified exit to Materials 968 | -9/Materials | Build established: Scavenger-Mutant 1079 | -9/Materials | Discovered new exit (range 6) 1081 | -9/Materials | Lost 3 parts (1p2n) 1366 | -9/Materials | Discovered exit to Materials (range 8) 1640 | -9/Materials | Discovered exit to Materials (range 16) 1854 | -9/Materials | Identified exit to Mines 2496 | -9/Materials | Entered Mines 2514 | -9/Mines | Core integrity fell below 50% 2550 | -9/Mines | Build established: Mutant 2566 | -9/Mines | Discovered exit to Materials (range 9) 2657 | -9/Mines | Assembled infested the area 2666 | -9/Mines | Learned 4 Materials zone layouts 2675 | -9/Mines | Learned Materials stockpile data 2708 | -9/Mines | Core integrity fell below 20% 2748 | -9/Mines | Lost 8 parts (1p3n1u3w) 2843 | -9/Mines | Lost 5 parts (1n4w) 2884 | -9/Mines | Destroyed by as-34009 with Assembled F-torch Last Messages --------------- 02791_ Destroyed Grenade Launcher. 02792_ The unstable cave ceiling collapses. 02792_ U-05 Engineer builds a Wall. 02793_ Aluminum Leg destroyed. 02794_ as-41599 destroyed. 02797_ U-05 Engineer lays Concrete. 02798_ Grenade Launcher destroyed. 02799_ U-05 Engineer builds a Wall. 02803_ Acquired Particle Gun. 02804_ U-05 Engineer builds a Wall. 02812_ EM Shotgun destroyed. 02823_ as-04523 destroyed. 02827_ The unstable cave ceiling collapses. 02861_ U-05 Engineer lays Concrete. 02864_ U-05 Engineer builds a Wall. 02866_ The unstable cave ceiling collapses. 02868_ U-05 Engineer builds a Wall. 02868_ as-67146 destroyed. 02875_ Acquired 74 matter. 02881_ Particle Gun destroyed. Map ----- +----------------------------------------------------+ | ?????????????????????????????????????????????????? | | ?????????????????????????????????????????????????? | | ?????????????????????????????????????????????????? | | ?????????????????????????????????????????????????? | | ?????????????????????????????????????????????????? | | ?????????????????????????????????????????????????? | | ?????????????????????????????????????????????????? | | ?????????????????????????????????????????????????? | | ?????????????????????????????????????????????????? | | ???????????#####?????????????????????????????????? | | ??????????## ##????????????????????????????????? | | ??????????# ###??????????????????????????????? | | ??????????# ##?????????????????????????????? | | ???####???## #?????????????????????????????? | | ???# ##???## #?????????????????????????????? | | ???# ###?## #?????????????????????????????? | | ????# ### #?????????????????????????????? | | ???## #?????????????????????????????? | | ??## ##?????????????????????????????? | | ?## #?????????????????????????????? | | ## #?????????????????????????????? | | < #?????????????????????????????? | | ###???????????????????????????? | | ###########?????????????????? | | % #?????????????????? | | % % @ a #?????????????????? | | # #########= #?????????????????? | | # %# % # #????????????????????????????? | | ### ###????????????????????????????? | | ## # ##??????????????????????????????? | | ##### # ###???????????????????????????????? | | # #####?????????????????????????????????? | | # # #?????????????????????????????????????? | | # # #???????????????????????????? ????????? | | ###???????????????????????????? ????????? | | # # #???????????????????????????# #???????? | | ### # #???????????????????????????# #???????? | | # #! ##???????????????????????????# ???????? | | # # #???????????????????????????# #???????? | | # # ###???????????????????????????# #???????? | | # ### ##????????????????????????????# #???????? | | ### ??#"%##???????????????????????????## ####????? | | ### ### " ##?????????????????????????## ###??? | | # #?????????????????????????# ##?? | | #?????????????????????????# #?? | | #??????????????????????????# ### | | """ ##????????????????????????## | | """ ######??????????????????## #? | | # """ #??????????????????# ## | | #### #??????????????????# # | +----------------------------------------------------+ Best States ------------- Heat Dissipation 42 Energy Generation 14 Energy Capacity 280 Matter Stores 300 Matter Capacity 300 Sight Range 16 Terrain Scan Density 10 Armor Coverage 150 Evasion (%) 54 Recoil Reduction 3 Item Schematics ----------------- None Robot Schematics ------------------ None Fabricated ------------ Nothing Alien Tech Used ----------------- None Achievements -------------- None Challenges ------------ None Game ------ Seed AluminumGravitonWheel Manual? 0 Play Time 00:22:25 Cumulative 101.5 hours Start 2019.11.03 @ 10:57:26 End 2019.11.03 @ 11:19:44 Sessions 1 Manual Loads 0 Difficulty Rogue Special Mode None Game No. 163 Rogue 163 Adventurer 0 Explorer 0 Win Type - Total 0 Types 0/0/0/0/0/0/0 Lore% 31 Gallery% 48 Achievement% 34 Wizard Run 0 Options --------- ASCII 0 Keyboard 0 Movement Mouse Keybinds 0 Fullscreen 1 Font 18/SmallcapsGlow Map View 76x50 Tactical HUD 1 Map Filters NONE Filters NONE Steam 1 RUN: 0d9d0cf2-64ad-4037-80be-19251815e53b